[Event "Early Titled Tuesday Blitz | February 8 2022"]
[White "Zhigalko, Sergei"]
[Black "Perez Gormaz, Matias"]
[WhiteFideId "13502956"]
[BlackFideId "3406342"]
[WhiteElo "2662"]
[BlackElo "2352"]
[Result "1-0"]
[Round "10"]
[TimeControl "180+1"]
[Date "2022.02.08"]
[WhiteClock "0:00:25"]
[BlackClock "0:00:01"]

1. e4 {[%clk 0:03:00]}  c5 {[%clk 0:02:59]} 2. Nf3 {[%clk 0:03:01]}  d6 {[%clk 0:02:59]} 3. d4 {[%clk 0:03:01]}  cxd4 {[%clk 0:03:00]} 4. Qxd4 {[%clk 0:03:01]}  Nc6 {[%clk 0:03:01]} 5. Bb5 {[%clk 0:03:01]}  Bd7 {[%clk 0:03:02]} 6. Bxc6 {[%clk 0:03:01]}  Bxc6 {[%clk 0:03:03]} 7. Nc3 {[%clk 0:03:01]}  Nf6 {[%clk 0:03:03]} 8. Bg5 {[%clk 0:03:01]}  e6 {[%clk 0:03:04]} 9. O-O-O {[%clk 0:03:01]}  Be7 {[%clk 0:03:05]} 10. Rhe1 {[%clk 0:03:02]}  O-O {[%clk 0:03:04]} 11. Kb1 {[%clk 0:03:02]}  h6 {[%clk 0:02:35]} 12. Bh4 {[%clk 0:03:02]}  b5 {[%clk 0:02:01]} 13. Bxf6 {[%clk 0:03:01]}  Bxf6 {[%clk 0:01:31]} 14. Qxd6 {[%clk 0:03:01]}  Bxc3 {[%clk 0:01:31]} 15. Qxc6 {[%clk 0:01:37]}  Bxe1 {[%clk 0:01:30]} 16. Rxd8 {[%clk 0:01:36]}  Raxd8 {[%clk 0:01:25]} 17. a3 {[%clk 0:01:26]}  Bxf2 {[%clk 0:01:25]} 18. Qxb5 {[%clk 0:01:26]}  Rb8 {[%clk 0:01:06]} 19. Qe2 {[%clk 0:01:18]}  Bc5 {[%clk 0:01:06]} 20. Ka2 {[%clk 0:01:17]}  Rfc8 {[%clk 0:00:58]} 21. Ne5 {[%clk 0:01:12]}  Bd4 {[%clk 0:00:51]} 22. Nd3 {[%clk 0:01:11]}  a5 {[%clk 0:00:33]} 23. g4 {[%clk 0:01:05]}  Rb7 {[%clk 0:00:17]} 24. h4 {[%clk 0:01:05]}  Bf6 {[%clk 0:00:13]} 25. Qf2 {[%clk 0:00:59]}  Rbc7 {[%clk 0:00:13]} 26. c3 {[%clk 0:00:59]}  Rd8 {[%clk 0:00:10]} 27. g5 {[%clk 0:00:31]}  hxg5 {[%clk 0:00:06]} 28. hxg5 {[%clk 0:00:32]}  Bxc3 {[%clk 0:00:04]} 29. Qb6 {[%clk 0:00:31]}  Rcd7 {[%clk 0:00:02]} 30. Nc5 {[%clk 0:00:29]}  Bd4 {[%clk 0:00:02]} 31. Qxa5 {[%clk 0:00:29]}  Bxc5 {[%clk 0:00:02]} 32. Qxc5 {[%clk 0:00:30]}  Rd4 {[%clk 0:00:02]} 33. g6 {[%clk 0:00:25]}  fxg6 {[%clk 0:00:01]} 34. Qe7 {[%clk 0:00:25]} 1-0


[Site "https://www.chess.com"]

[Event "Early Titled Tuesday Blitz | February 8 2022"]
[White "Alekseev, Evgeny"]
[Black "Abdusattorov, Nodirbek"]
[WhiteFideId "4138147"]
[BlackFideId "14204118"]
[WhiteElo "2589"]
[BlackElo "2663"]
[Result "0-1"]
[Round "11"]
[TimeControl "180+1"]
[Date "2022.02.08"]
[WhiteClock "0:00:02"]
[BlackClock "0:00:04"]

1. e4 {[%clk 0:02:52]}  c5 {[%clk 0:02:57]} 2. Nf3 {[%clk 0:02:52]}  Nc6 {[%clk 0:02:58]} 3. Bb5 {[%clk 0:02:50]}  g6 {[%clk 0:02:58]} 4. O-O {[%clk 0:02:50]}  Bg7 {[%clk 0:02:57]} 5. c3 {[%clk 0:02:50]}  Nf6 {[%clk 0:02:50]} 6. Re1 {[%clk 0:02:50]}  O-O {[%clk 0:02:48]} 7. h3 {[%clk 0:02:49]}  Qb6 {[%clk 0:02:42]} 8. Ba4 {[%clk 0:02:48]}  d6 {[%clk 0:02:09]} 9. d3 {[%clk 0:02:48]}  Bd7 {[%clk 0:02:01]} 10. Nbd2 {[%clk 0:02:47]}  Rac8 {[%clk 0:01:58]} 11. Nf1 {[%clk 0:02:44]}  Ne5 {[%clk 0:01:54]} 12. Nxe5 {[%clk 0:02:31]}  dxe5 {[%clk 0:01:55]} 13. Bxd7 {[%clk 0:02:29]}  Nxd7 {[%clk 0:01:55]} 14. Be3 {[%clk 0:02:24]}  Rfd8 {[%clk 0:01:41]} 15. Qb3 {[%clk 0:02:20]}  Qc6 {[%clk 0:01:33]} 16. Red1 {[%clk 0:02:15]}  Nf8 {[%clk 0:01:26]} 17. Qc2 {[%clk 0:01:55]}  Ne6 {[%clk 0:01:26]} 18. g3 {[%clk 0:01:55]}  f5 {[%clk 0:01:14]} 19. Qe2 {[%clk 0:01:48]}  Rf8 {[%clk 0:01:09]} 20. Nh2 {[%clk 0:01:31]}  Rf7 {[%clk 0:00:57]} 21. Rf1 {[%clk 0:01:26]}  Rcf8 {[%clk 0:00:57]} 22. Rad1 {[%clk 0:01:21]}  Qd7 {[%clk 0:00:45]} 23. h4 {[%clk 0:01:17]}  f4 {[%clk 0:00:44]} 24. Bc1 {[%clk 0:01:12]}  f3 {[%clk 0:00:45]} 25. Qe3 {[%clk 0:01:12]}  Nd4 {[%clk 0:00:33]} 26. Kh1 {[%clk 0:01:03]}  Qh3 {[%clk 0:00:33]} 27. Rg1 {[%clk 0:01:03]}  Ne2 {[%clk 0:00:33]} 28. Qxc5 {[%clk 0:01:02]}  Bf6 {[%clk 0:00:20]} 29. Qc4 {[%clk 0:00:56]}  Rd8 {[%clk 0:00:18]} 30. Be3 {[%clk 0:00:52]}  b6 {[%clk 0:00:18]} 31. d4 {[%clk 0:00:47]}  Nxg1 {[%clk 0:00:18]} 32. Rxg1 {[%clk 0:00:45]}  exd4 {[%clk 0:00:19]} 33. cxd4 {[%clk 0:00:46]}  e6 {[%clk 0:00:12]} 34. e5 {[%clk 0:00:42]}  Be7 {[%clk 0:00:10]} 35. Qc6 {[%clk 0:00:35]}  Kg7 {[%clk 0:00:10]} 36. Qe4 {[%clk 0:00:22]}  h6 {[%clk 0:00:09]} 37. a3 {[%clk 0:00:14]}  g5 {[%clk 0:00:08]} 38. Qg4 {[%clk 0:00:13]}  Qxg4 {[%clk 0:00:08]} 39. Nxg4 {[%clk 0:00:14]}  gxh4 {[%clk 0:00:08]} 40. Nxh6 {[%clk 0:00:12]}  Rh8 {[%clk 0:00:02]} 41. gxh4+ {[%clk 0:00:10]}  Kf8 {[%clk 0:00:03]} 42. Rg6 {[%clk 0:00:09]}  Rfh7 {[%clk 0:00:01]} 43. h5 {[%clk 0:00:09]}  Bh4 {[%clk 0:00:01]} 44. Kg1 {[%clk 0:00:08]}  Rg7 {[%clk 0:00:01]} 45. Kf1 {[%clk 0:00:05]}  Rxg6 {[%clk 0:00:02]} 46. hxg6 {[%clk 0:00:05]}  Kg7 {[%clk 0:00:03]} 47. Nf7 {[%clk 0:00:05]}  Rc8 {[%clk 0:00:03]} 48. Nd6 {[%clk 0:00:04]}  Rc2 {[%clk 0:00:03]} 49. b4 {[%clk 0:00:02]}  Ra2 {[%clk 0:00:03]} 50. Kg1 {[%clk 0:00:02]}  Kxg6 {[%clk 0:00:04]} 0-1


[Site "https://www.chess.com"]

[Event "Early Titled Tuesday Blitz | February 8 2022"]
[White "Alghamdi, Ahmed M"]
[Black "Dauner, Benedikt"]
[WhiteFideId "21500150"]
[BlackFideId "16225899"]
[WhiteElo "2110"]
[BlackElo "2230"]
[Result "0-1"]
[Round "11"]
[TimeControl "180+1"]
[Date "2022.02.08"]
[WhiteClock "0:00:02"]
[BlackClock "0:00:18"]

1. e4 {[%clk 0:03:00]}  Nf6 {[%clk 0:03:00]} 2. e5 {[%clk 0:02:59]}  Nd5 {[%clk 0:03:00]} 3. d4 {[%clk 0:02:58]}  d6 {[%clk 0:03:00]} 4. Nf3 {[%clk 0:02:57]}  g6 {[%clk 0:02:58]} 5. Bc4 {[%clk 0:02:54]}  Nb6 {[%clk 0:02:56]} 6. Bb3 {[%clk 0:02:53]}  Bg7 {[%clk 0:02:56]} 7. Ng5 {[%clk 0:02:52]}  e6 {[%clk 0:02:55]} 8. Qf3 {[%clk 0:02:51]}  Qe7 {[%clk 0:02:55]} 9. Ne4 {[%clk 0:02:50]}  dxe5 {[%clk 0:02:47]} 10. Bg5 {[%clk 0:02:46]}  Qb4+ {[%clk 0:02:41]} 11. c3 {[%clk 0:02:45]}  Qa5 {[%clk 0:02:42]} 12. O-O {[%clk 0:01:32]}  N8d7 {[%clk 0:02:26]} 13. Nf6+ {[%clk 0:01:16]}  Nxf6 {[%clk 0:02:22]} 14. Bxf6 {[%clk 0:01:17]}  O-O {[%clk 0:02:21]} 15. dxe5 {[%clk 0:01:17]}  Bxf6 {[%clk 0:02:14]} 16. exf6 {[%clk 0:01:16]}  Qf5 {[%clk 0:02:14]} 17. Qg3 {[%clk 0:01:14]}  c6 {[%clk 0:02:09]} 18. Nd2 {[%clk 0:01:14]}  Qxf6 {[%clk 0:02:08]} 19. Ne4 {[%clk 0:01:14]}  Qg7 {[%clk 0:01:58]} 20. Rad1 {[%clk 0:01:10]}  Nd5 {[%clk 0:01:56]} 21. c4 {[%clk 0:01:09]}  Nf6 {[%clk 0:01:53]} 22. Nd6 {[%clk 0:01:09]}  Ne8 {[%clk 0:01:46]} 23. c5 {[%clk 0:01:01]}  b6 {[%clk 0:01:38]} 24. Ne4 {[%clk 0:00:54]}  Nf6 {[%clk 0:01:32]} 25. Nxf6+ {[%clk 0:00:45]}  Qxf6 {[%clk 0:01:32]} 26. Qc7 {[%clk 0:00:46]}  Ba6 {[%clk 0:01:29]} 27. Rfe1 {[%clk 0:00:45]}  Rfc8 {[%clk 0:01:27]} 28. Qd7 {[%clk 0:00:43]}  bxc5 {[%clk 0:00:59]} 29. h3 {[%clk 0:00:40]}  c4 {[%clk 0:00:57]} 30. Ba4 {[%clk 0:00:39]}  Bb5 {[%clk 0:00:55]} 31. Bxb5 {[%clk 0:00:38]}  cxb5 {[%clk 0:00:56]} 32. Qxb5 {[%clk 0:00:36]}  Rab8 {[%clk 0:00:56]} 33. Qa6 {[%clk 0:00:35]}  Qxb2 {[%clk 0:00:55]} 34. Qxa7 {[%clk 0:00:35]}  Rb7 {[%clk 0:00:46]} 35. Qa6 {[%clk 0:00:32]}  c3 {[%clk 0:00:45]} 36. Rd7 {[%clk 0:00:28]}  Rcb8 {[%clk 0:00:39]} 37. Rxb7 {[%clk 0:00:26]}  Rxb7 {[%clk 0:00:38]} 38. Qc6 {[%clk 0:00:12]}  c2 {[%clk 0:00:35]} 39. Kh2 {[%clk 0:00:12]}  Kg7 {[%clk 0:00:30]} 40. Qc5 {[%clk 0:00:11]}  h5 {[%clk 0:00:27]} 41. h4 {[%clk 0:00:10]}  Rb4 {[%clk 0:00:24]} 42. g3 {[%clk 0:00:09]}  Ra4 {[%clk 0:00:23]} 43. Qe3 {[%clk 0:00:04]}  Rxa2 {[%clk 0:00:22]} 44. Rc1 {[%clk 0:00:02]}  Ra1 {[%clk 0:00:18]} 0-1


[Site "https://www.chess.com"]

[Event "Early Titled Tuesday Blitz | February 8 2022"]
[White "Andreikin, Dmitry"]
[Black "Jones, Gawain C B"]
[WhiteFideId "4158814"]
[BlackFideId "409561"]
[WhiteElo "2736"]
[BlackElo "2657"]
[Result "1/2-1/2"]
[Round "11"]
[TimeControl "180+1"]
[Date "2022.02.08"]
[WhiteClock "0:00:05"]
[BlackClock "0:00:06"]

1. d4 {[%clk 0:03:00]}  Nf6 {[%clk 0:02:59]} 2. c4 {[%clk 0:03:01]}  g6 {[%clk 0:03:00]} 3. Nc3 {[%clk 0:03:01]}  Bg7 {[%clk 0:03:00]} 4. e4 {[%clk 0:03:01]}  d6 {[%clk 0:03:00]} 5. h3 {[%clk 0:03:01]}  O-O {[%clk 0:03:00]} 6. Be3 {[%clk 0:03:01]}  e5 {[%clk 0:02:58]} 7. d5 {[%clk 0:03:01]}  Na6 {[%clk 0:02:58]} 8. Bd3 {[%clk 0:02:58]}  Nc5 {[%clk 0:02:55]} 9. Bc2 {[%clk 0:02:58]}  a5 {[%clk 0:02:55]} 10. g4 {[%clk 0:02:57]}  h5 {[%clk 0:02:44]} 11. f3 {[%clk 0:02:41]}  Nh7 {[%clk 0:02:34]} 12. Qd2 {[%clk 0:02:34]}  h4 {[%clk 0:02:26]} 13. O-O-O {[%clk 0:02:25]}  Bf6 {[%clk 0:02:15]} 14. Nge2 {[%clk 0:02:15]}  Qe7 {[%clk 0:02:03]} 15. Kb1 {[%clk 0:02:14]}  Bd7 {[%clk 0:01:58]} 16. b3 {[%clk 0:01:43]}  Na6 {[%clk 0:01:51]} 17. a3 {[%clk 0:01:40]}  Rfd8 {[%clk 0:01:28]} 18. Nc1 {[%clk 0:01:39]}  Bg5 {[%clk 0:01:18]} 19. Nd3 {[%clk 0:01:38]}  Bxe3 {[%clk 0:01:14]} 20. Qxe3 {[%clk 0:01:39]}  Nc5 {[%clk 0:01:09]} 21. Kb2 {[%clk 0:01:26]}  b6 {[%clk 0:00:50]} 22. b4 {[%clk 0:01:22]}  axb4 {[%clk 0:00:49]} 23. axb4 {[%clk 0:01:23]}  Na4+ {[%clk 0:00:45]} 24. Bxa4 {[%clk 0:01:17]}  Bxa4 {[%clk 0:00:46]} 25. Ra1 {[%clk 0:01:17]}  Bd7 {[%clk 0:00:46]} 26. Kc2 {[%clk 0:01:07]}  Qg5 {[%clk 0:00:43]} 27. Kd2 {[%clk 0:01:04]}  Qf6 {[%clk 0:00:37]} 28. Nf2 {[%clk 0:00:59]}  Ng5 {[%clk 0:00:36]} 29. Ke2 {[%clk 0:00:59]}  Kg7 {[%clk 0:00:35]} 30. Nb5 {[%clk 0:00:53]}  Rdc8 {[%clk 0:00:31]} 31. Na7 {[%clk 0:00:50]}  Rcb8 {[%clk 0:00:30]} 32. Ra3 {[%clk 0:00:51]}  Rf8 {[%clk 0:00:27]} 33. Rha1 {[%clk 0:00:49]}  Qe7 {[%clk 0:00:22]} 34. Rg1 {[%clk 0:00:28]}  Kh7 {[%clk 0:00:22]} 35. b5 {[%clk 0:00:26]}  f6 {[%clk 0:00:20]} 36. Ra6 {[%clk 0:00:26]}  Rf7 {[%clk 0:00:19]} 37. Nd3 {[%clk 0:00:21]}  Raf8 {[%clk 0:00:18]} 38. Nc6 {[%clk 0:00:19]}  Bxc6 {[%clk 0:00:15]} 39. bxc6 {[%clk 0:00:20]}  Rg7 {[%clk 0:00:14]} 40. Ra7 {[%clk 0:00:15]}  f5 {[%clk 0:00:14]} 41. Rxc7 {[%clk 0:00:13]}  Qxc7 {[%clk 0:00:12]} 42. Qxg5 {[%clk 0:00:13]}  fxe4 {[%clk 0:00:12]} 43. fxe4 {[%clk 0:00:13]}  Qa7 {[%clk 0:00:10]} 44. Qd2 {[%clk 0:00:09]}  b5 {[%clk 0:00:08]} 45. c5 {[%clk 0:00:08]}  dxc5 {[%clk 0:00:07]} 46. Nxe5 {[%clk 0:00:06]}  c4 {[%clk 0:00:07]} 47. Rf1 {[%clk 0:00:06]}  Rxf1 {[%clk 0:00:06]} 48. Kxf1 {[%clk 0:00:07]}  Qa1+ {[%clk 0:00:04]} 49. Kg2 {[%clk 0:00:06]}  Qxe5 {[%clk 0:00:05]} 50. Qe1 {[%clk 0:00:06]}  Re7 {[%clk 0:00:05]} 51. Qxh4+ {[%clk 0:00:03]}  Kg7 {[%clk 0:00:05]} 52. g5 {[%clk 0:00:03]}  Kg8 {[%clk 0:00:04]} 53. Qg4 {[%clk 0:00:03]}  c3 {[%clk 0:00:04]} 54. Qe2 {[%clk 0:00:03]}  Qxe4+ {[%clk 0:00:03]} 55. Qxe4 {[%clk 0:00:03]}  Rxe4 {[%clk 0:00:04]} 56. c7 {[%clk 0:00:03]}  Rc4 {[%clk 0:00:04]} 57. d6 {[%clk 0:00:04]}  c2 {[%clk 0:00:04]} 58. d7 {[%clk 0:00:05]}  c1=Q {[%clk 0:00:03]} 59. d8=Q+ {[%clk 0:00:05]}  Kf7 {[%clk 0:00:03]} 60. Qd7+ {[%clk 0:00:05]}  Kf8 {[%clk 0:00:04]} 61. Qd8+ {[%clk 0:00:05]}  Kf7 {[%clk 0:00:04]} 62. Qf6+ {[%clk 0:00:04]}  Ke8 {[%clk 0:00:04]} 63. Qe6+ {[%clk 0:00:04]}  Kf8 {[%clk 0:00:05]} 64. Qf6+ {[%clk 0:00:04]}  Ke8 {[%clk 0:00:05]} 65. Qe6+ {[%clk 0:00:05]}  Kf8 {[%clk 0:00:05]} 66. Qf6+ {[%clk 0:00:05]}  Ke8 {[%clk 0:00:06]} 1/2-1/2


[Site "https://www.chess.com"]

[Event "Early Titled Tuesday Blitz | February 8 2022"]
[White "Araujo Filho, Luiz Antonio Coel"]
[Black "Bambino Filho, Antonio Carlos"]
[WhiteFideId "2130661"]
[BlackFideId "2113163"]
[WhiteElo "2256"]
[BlackElo "2454"]
[Result "1-0"]
[Round "11"]
[TimeControl "180+1"]
[Date "2022.02.08"]
[WhiteClock "0:00:38"]
[BlackClock "0:00:02"]

1. d4 {[%clk 0:03:00]}  Nf6 {[%clk 0:02:59]} 2. Nf3 {[%clk 0:03:01]}  c5 {[%clk 0:02:59]} 3. e3 {[%clk 0:03:01]}  b6 {[%clk 0:02:58]} 4. Bd3 {[%clk 0:03:00]}  g6 {[%clk 0:02:59]} 5. Nbd2 {[%clk 0:03:00]}  Bb7 {[%clk 0:02:59]} 6. Qe2 {[%clk 0:03:00]}  Bg7 {[%clk 0:02:59]} 7. O-O {[%clk 0:03:01]}  O-O {[%clk 0:03:00]} 8. b3 {[%clk 0:03:00]}  cxd4 {[%clk 0:02:46]} 9. exd4 {[%clk 0:03:00]}  Nd5 {[%clk 0:02:46]} 10. Ne4 {[%clk 0:02:50]}  Nc6 {[%clk 0:02:44]} 11. Bb2 {[%clk 0:02:46]}  Nf4 {[%clk 0:02:44]} 12. Qe3 {[%clk 0:02:43]}  Nxd3 {[%clk 0:02:44]} 13. Qxd3 {[%clk 0:02:44]}  Nb4 {[%clk 0:02:35]} 14. Qe2 {[%clk 0:02:14]}  Ba6 {[%clk 0:02:31]} 15. c4 {[%clk 0:02:13]}  d5 {[%clk 0:02:31]} 16. Ned2 {[%clk 0:02:10]}  dxc4 {[%clk 0:02:20]} 17. bxc4 {[%clk 0:02:08]}  Rc8 {[%clk 0:02:19]} 18. Rac1 {[%clk 0:02:02]}  Nc6 {[%clk 0:02:09]} 19. Nb3 {[%clk 0:01:54]}  e6 {[%clk 0:01:54]} 20. Rfd1 {[%clk 0:01:50]}  Re8 {[%clk 0:01:55]} 21. h3 {[%clk 0:01:44]}  Qe7 {[%clk 0:01:50]} 22. Ne5 {[%clk 0:01:35]}  Nxe5 {[%clk 0:01:42]} 23. dxe5 {[%clk 0:01:36]}  Qb4 {[%clk 0:01:38]} 24. Rd7 {[%clk 0:01:35]}  Bxc4 {[%clk 0:01:28]} 25. Qf3 {[%clk 0:01:33]}  Rf8 {[%clk 0:01:29]} 26. Rxa7 {[%clk 0:01:30]}  Bd5 {[%clk 0:01:27]} 27. Qe3 {[%clk 0:01:20]}  Rxc1+ {[%clk 0:01:17]} 28. Bxc1 {[%clk 0:01:16]}  Rc8 {[%clk 0:00:46]} 29. Ba3 {[%clk 0:00:59]}  Qb5 {[%clk 0:00:34]} 30. Qf4 {[%clk 0:00:56]}  Qe8 {[%clk 0:00:06]} 31. Re7 {[%clk 0:00:56]}  Qf8 {[%clk 0:00:06]} 32. Bd6 {[%clk 0:00:48]}  Bxb3 {[%clk 0:00:03]} 33. axb3 {[%clk 0:00:48]}  h6 {[%clk 0:00:02]} 34. Rxe6 {[%clk 0:00:38]} 1-0


[Site "https://www.chess.com"]

[Event "Early Titled Tuesday Blitz | February 8 2022"]
[White "Avila Pavas, Santiago"]
[Black "Kamsky, Gata"]
[WhiteFideId "4437128"]
[BlackFideId "2000024"]
[WhiteElo "2242"]
[BlackElo "2645"]
[Result "0-1"]
[Round "11"]
[TimeControl "180+1"]
[Date "2022.02.08"]
[WhiteClock "0:00:02"]
[BlackClock "0:00:08"]

1. d4 {[%clk 0:03:00]}  f5 {[%clk 0:02:57]} 2. e4 {[%clk 0:03:00]}  fxe4 {[%clk 0:02:56]} 3. Nc3 {[%clk 0:03:01]}  Nf6 {[%clk 0:02:56]} 4. Bg5 {[%clk 0:03:01]}  g6 {[%clk 0:02:54]} 5. f3 {[%clk 0:02:53]}  d5 {[%clk 0:02:53]} 6. fxe4 {[%clk 0:02:50]}  Nxe4 {[%clk 0:02:44]} 7. Nxe4 {[%clk 0:02:50]}  dxe4 {[%clk 0:02:44]} 8. Bc4 {[%clk 0:02:47]}  Qd6 {[%clk 0:02:23]} 9. Qd2 {[%clk 0:02:42]}  Bg7 {[%clk 0:02:10]} 10. Ne2 {[%clk 0:02:42]}  Nc6 {[%clk 0:02:05]} 11. Rf1 {[%clk 0:02:31]}  Bf5 {[%clk 0:01:57]} 12. g4 {[%clk 0:02:18]}  Bxg4 {[%clk 0:01:39]} 13. Bf7+ {[%clk 0:02:15]}  Kd7 {[%clk 0:01:38]} 14. Bf4 {[%clk 0:01:21]}  Qb4 {[%clk 0:01:32]} 15. c3 {[%clk 0:01:21]}  Qb5 {[%clk 0:01:29]} 16. d5 {[%clk 0:01:18]}  Ne5 {[%clk 0:00:57]} 17. Bxe5 {[%clk 0:01:07]}  Bxe5 {[%clk 0:00:54]} 18. Be6+ {[%clk 0:00:36]}  Bxe6 {[%clk 0:00:54]} 19. dxe6+ {[%clk 0:00:37]}  Kxe6 {[%clk 0:00:52]} 20. O-O-O {[%clk 0:00:17]}  Rad8 {[%clk 0:00:49]} 21. Qe3 {[%clk 0:00:17]}  Rxd1+ {[%clk 0:00:47]} 22. Rxd1 {[%clk 0:00:18]}  Kf7 {[%clk 0:00:30]} 23. Qxe4 {[%clk 0:00:16]}  Bf6 {[%clk 0:00:30]} 24. Nd4 {[%clk 0:00:10]}  Qg5+ {[%clk 0:00:19]} 25. Kc2 {[%clk 0:00:08]}  c6 {[%clk 0:00:17]} 26. Qe6+ {[%clk 0:00:07]}  Kg7 {[%clk 0:00:17]} 27. Rd2 {[%clk 0:00:04]}  Rd8 {[%clk 0:00:15]} 28. h4 {[%clk 0:00:04]}  Qd5 {[%clk 0:00:13]} 29. Nf5+ {[%clk 0:00:03]}  gxf5 {[%clk 0:00:11]} 30. Rxd5 {[%clk 0:00:03]}  Rxd5 {[%clk 0:00:11]} 31. h5 {[%clk 0:00:04]}  Kh6 {[%clk 0:00:11]} 32. Qf7 {[%clk 0:00:04]}  f4 {[%clk 0:00:10]} 33. c4 {[%clk 0:00:05]}  Rd4 {[%clk 0:00:10]} 34. b3 {[%clk 0:00:03]}  f3 {[%clk 0:00:10]} 35. Qe6 {[%clk 0:00:03]}  Rf4 {[%clk 0:00:09]} 36. Qe3 {[%clk 0:00:03]}  e5 {[%clk 0:00:08]} 37. Qf2 {[%clk 0:00:01]}  Bh4 {[%clk 0:00:09]} 38. Kd3 {[%clk 0:00:02]}  Bxf2 {[%clk 0:00:08]} 0-1


[Site "https://www.chess.com"]

[Event "Early Titled Tuesday Blitz | February 8 2022"]
[White "Bettalli, Francesco"]
[Black "Quirke, Jeffrey"]
[WhiteFideId "2816453"]
[BlackFideId "2013029"]
[WhiteElo "2216"]
[BlackElo "2255"]
[Result "1-0"]
[Round "11"]
[TimeControl "180+1"]
[Date "2022.02.08"]
[WhiteClock "0:02:14"]
[BlackClock "0:00:13"]

1. d4 {[%clk 0:03:00]}  d5 {[%clk 0:02:59]} 2. Nc3 {[%clk 0:03:01]}  Nf6 {[%clk 0:02:56]} 3. Bf4 {[%clk 0:03:02]}  e6 {[%clk 0:02:49]} 4. Nb5 {[%clk 0:03:00]}  Na6 {[%clk 0:02:41]} 5. e3 {[%clk 0:02:59]}  c6 {[%clk 0:02:40]} 6. Nc3 {[%clk 0:02:59]}  Nc7 {[%clk 0:02:34]} 7. a3 {[%clk 0:02:54]}  Bd6 {[%clk 0:02:34]} 8. Nf3 {[%clk 0:02:54]}  O-O {[%clk 0:02:32]} 9. Bd3 {[%clk 0:02:54]}  Re8 {[%clk 0:02:27]} 10. O-O {[%clk 0:02:53]}  a6 {[%clk 0:02:21]} 11. Ne5 {[%clk 0:02:52]}  c5 {[%clk 0:02:17]} 12. dxc5 {[%clk 0:02:50]}  Bxc5 {[%clk 0:02:17]} 13. b4 {[%clk 0:02:50]}  Bf8 {[%clk 0:02:16]} 14. Qf3 {[%clk 0:02:48]}  Ra7 {[%clk 0:01:52]} 15. g4 {[%clk 0:02:45]}  Qe7 {[%clk 0:01:34]} 16. g5 {[%clk 0:02:39]}  Nd7 {[%clk 0:01:33]} 17. Ng4 {[%clk 0:02:39]}  e5 {[%clk 0:01:25]} 18. Qh3 {[%clk 0:02:39]}  g6 {[%clk 0:01:17]} 19. Bg3 {[%clk 0:02:38]}  Bg7 {[%clk 0:00:59]} 20. e4 {[%clk 0:02:25]}  d4 {[%clk 0:00:57]} 21. Nd5 {[%clk 0:02:25]}  Nxd5 {[%clk 0:00:57]} 22. exd5 {[%clk 0:02:26]}  Nb6 {[%clk 0:00:57]} 23. Be4 {[%clk 0:02:24]}  Qd7 {[%clk 0:00:40]} 24. f3 {[%clk 0:02:23]}  Nxd5 {[%clk 0:00:34]} 25. Qh4 {[%clk 0:02:23]}  Nc3 {[%clk 0:00:28]} 26. Nf6+ {[%clk 0:02:20]}  Bxf6 {[%clk 0:00:27]} 27. gxf6 {[%clk 0:02:21]}  Re6 {[%clk 0:00:19]} 28. Bf5 {[%clk 0:02:17]}  Qd8 {[%clk 0:00:18]} 29. Bxe6 {[%clk 0:02:17]}  Bxe6 {[%clk 0:00:18]} 30. Bxe5 {[%clk 0:02:17]}  h5 {[%clk 0:00:16]} 31. Qxd4 {[%clk 0:02:16]}  Ne2+ {[%clk 0:00:15]} 32. Kf2 {[%clk 0:02:15]}  Nxd4 {[%clk 0:00:16]} 33. Rad1 {[%clk 0:02:14]}  Qc7 {[%clk 0:00:13]} 34. Bxc7 {[%clk 0:02:14]} 1-0


[Site "https://www.chess.com"]

[Event "Early Titled Tuesday Blitz | February 8 2022"]
[White "Bintang, Rasyid A. Hidayat"]
[Black "Sovetbekova, Nurai"]
[WhiteFideId "7105355"]
[BlackFideId "13801910"]
[WhiteElo "2335"]
[BlackElo "1545"]
[Result "0-1"]
[Round "11"]
[TimeControl "180+1"]
[Date "2022.02.08"]
[WhiteClock "0:00:25"]
[BlackClock "0:00:06"]

1. d4 {[%clk 0:03:00]}  Nf6 {[%clk 0:02:59]} 2. Bf4 {[%clk 0:03:00]}  g6 {[%clk 0:02:59]} 3. Nc3 {[%clk 0:03:00]}  d5 {[%clk 0:02:58]} 4. e3 {[%clk 0:03:01]}  Bg7 {[%clk 0:02:59]} 5. h4 {[%clk 0:03:01]}  h5 {[%clk 0:02:58]} 6. Nf3 {[%clk 0:03:00]}  c5 {[%clk 0:02:56]} 7. Nb5 {[%clk 0:02:59]}  Na6 {[%clk 0:02:52]} 8. c3 {[%clk 0:02:59]}  Bd7 {[%clk 0:02:42]} 9. a4 {[%clk 0:02:58]}  O-O {[%clk 0:02:33]} 10. Be2 {[%clk 0:02:58]}  Qb6 {[%clk 0:02:29]} 11. O-O {[%clk 0:02:56]}  c4 {[%clk 0:02:23]} 12. b3 {[%clk 0:02:38]}  Bxb5 {[%clk 0:02:08]} 13. axb5 {[%clk 0:02:36]}  Qxb5 {[%clk 0:02:09]} 14. bxc4 {[%clk 0:02:36]}  dxc4 {[%clk 0:02:10]} 15. Ne5 {[%clk 0:02:32]}  Rfc8 {[%clk 0:01:30]} 16. Qa4 {[%clk 0:02:16]}  Qxa4 {[%clk 0:01:21]} 17. Rxa4 {[%clk 0:02:17]}  Nd5 {[%clk 0:01:22]} 18. Rc1 {[%clk 0:02:07]}  Nb6 {[%clk 0:01:11]} 19. Ra3 {[%clk 0:02:00]}  Nc7 {[%clk 0:01:03]} 20. Nxc4 {[%clk 0:01:54]}  Nxc4 {[%clk 0:00:57]} 21. Bxc4 {[%clk 0:01:53]}  b5 {[%clk 0:00:53]} 22. Bxc7 {[%clk 0:01:52]}  Rxc7 {[%clk 0:00:50]} 23. Bxb5 {[%clk 0:01:52]}  Rb8 {[%clk 0:00:47]} 24. c4 {[%clk 0:01:51]}  Rxb5 {[%clk 0:00:45]} 25. Rac3 {[%clk 0:01:48]}  Rb6 {[%clk 0:00:40]} 26. c5 {[%clk 0:01:40]}  Rb4 {[%clk 0:00:34]} 27. Ra3 {[%clk 0:01:37]}  e6 {[%clk 0:00:32]} 28. Rca1 {[%clk 0:01:37]}  Rbb7 {[%clk 0:00:31]} 29. c6 {[%clk 0:01:31]}  Rxc6 {[%clk 0:00:28]} 30. Rxa7 {[%clk 0:01:30]}  Rxa7 {[%clk 0:00:28]} 31. Rxa7 {[%clk 0:01:29]}  Rc1+ {[%clk 0:00:29]} 32. Kh2 {[%clk 0:01:29]}  Bf6 {[%clk 0:00:27]} 33. g3 {[%clk 0:01:25]}  Kg7 {[%clk 0:00:25]} 34. Kg2 {[%clk 0:01:24]}  Bd8 {[%clk 0:00:23]} 35. Ra2 {[%clk 0:01:20]}  Kf6 {[%clk 0:00:21]} 36. Rd2 {[%clk 0:01:20]}  Ba5 {[%clk 0:00:21]} 37. Re2 {[%clk 0:01:19]}  Re1 {[%clk 0:00:18]} 38. Ra2 {[%clk 0:01:14]}  Bb4 {[%clk 0:00:17]} 39. Rb2 {[%clk 0:01:14]}  Bd6 {[%clk 0:00:17]} 40. Rb6 {[%clk 0:01:11]}  Bc7 {[%clk 0:00:16]} 41. Rc6 {[%clk 0:01:09]}  Ba5 {[%clk 0:00:16]} 42. Rc2 {[%clk 0:01:09]}  Rb1 {[%clk 0:00:14]} 43. Ra2 {[%clk 0:01:08]}  Rb5 {[%clk 0:00:14]} 44. Rc2 {[%clk 0:01:06]}  Rb6 {[%clk 0:00:12]} 45. Rc5 {[%clk 0:01:01]}  Bb4 {[%clk 0:00:12]} 46. Rc2 {[%clk 0:01:01]}  Rd6 {[%clk 0:00:09]} 47. Rb2 {[%clk 0:01:00]}  Ba5 {[%clk 0:00:09]} 48. Ra2 {[%clk 0:01:00]}  Bb6 {[%clk 0:00:09]} 49. Rb2 {[%clk 0:01:00]}  e5 {[%clk 0:00:09]} 50. dxe5+ {[%clk 0:00:52]}  Kxe5 {[%clk 0:00:10]} 51. Rb5+ {[%clk 0:00:52]}  Ke6 {[%clk 0:00:10]} 52. Rb2 {[%clk 0:00:49]}  Rc6 {[%clk 0:00:10]} 53. Rd2 {[%clk 0:00:44]}  Bc7 {[%clk 0:00:09]} 54. Rb2 {[%clk 0:00:42]}  Bd6 {[%clk 0:00:09]} 55. Rd2 {[%clk 0:00:42]}  f5 {[%clk 0:00:09]} 56. Rb2 {[%clk 0:00:41]}  Ra6 {[%clk 0:00:09]} 57. Kf3 {[%clk 0:00:38]}  Ke5 {[%clk 0:00:08]} 58. Rb5+ {[%clk 0:00:38]}  Ke6 {[%clk 0:00:08]} 59. Rb3 {[%clk 0:00:31]}  Ra2 {[%clk 0:00:08]} 60. Rd3 {[%clk 0:00:25]}  Bc7 {[%clk 0:00:06]} 0-1


[Site "https://www.chess.com"]